{"text_format":"1","workbook":"xlsx","n_sheets":5,"sheets":["Student Details","Summative English","Summative Reading","Summative Writing","Summative Oral"],"not_rendered":{"charts":0,"images":0,"macros":1,"external_links":0,"defined_names":0,"comments":0,"pivot_tables":0},"unopened":[],"bounds":{"document_bytes":16777216,"sheet_cells":100000,"rows_first":2000,"rows_last":500,"rows_between":2000,"halvings":0,"cell_chars":16384,"cell_head_chars":4096},"cells_cut":0,"cells_raw":0,"read":"whole","date_system":"1900"}

{"sheet":"Student Details","index":0,"n_rows":28,"n_cols":2,"rows_kept":28,"cut":false,"hidden":false,"merged":[]}
["First Name","Last Name"]
["Sample","Student 1"]
["Sample","Student 2"]
["Sample","Student 3"]
["Sample","Student 4"]
["Sample","Student 5"]
["Sample","Student 6"]
["Sample","Student 7"]
["Sample","Student 8"]
["Sample","Student 9"]
["Sample","Student 10"]
["Sample","Student 11"]
["Sample","Student 12"]
["Sample","Student 13"]
["Sample","Student 14"]
["Sample","Student 15"]
["Sample","Student 16"]
["Sample","Student 17"]
["Sample","Student 18"]
["Sample","Student 19"]
["Sample","Student 20"]
["Sample","Student 21"]
["Sample","Student 22"]
["Sample","Student 23"]
["Sample","Student 24"]
["Sample","Student 25"]
["Sample","Student 26"]
["Sample","Student 27"]

{"sheet":"Summative English","index":1,"n_rows":28,"n_cols":9,"rows_kept":28,"cut":false,"hidden":false,"merged":[]}
["First Name","Last Name","Grade A-E","Fluency","Comprehension","Expression","Genre","Grammar","Spelling"]
[{"$f":"'Student Details'!A2","v":"Sample"},{"$f":"'Student Details'!B2","v":"Student 1"},null,{"$f":"'Summative Reading'!C4","v":"Above"},{"$f":"'Summative Reading'!E4","v":"At"},{"$f":"'Summative Reading'!J4","v":"Above"},{"$f":"'Summative Writing'!N4","v":"Above"},{"$f":"'Summative Writing'!F4","v":"Above"},{"$f":"'Summative Writing'!N4","v":"Above"}]
[{"$f":"'Student Details'!A3","v":"Sample"},{"$f":"'Student Details'!B3","v":"Student 2"},null,{"$f":"'Summative Reading'!C5","v":"At"},{"$f":"'Summative Reading'!E5","v":"Below"},{"$f":"'Summative Reading'!J5","v":"At"},{"$f":"'Summative Writing'!N5","v":"At"},{"$f":"'Summative Writing'!F5","v":"At"},{"$f":"'Summative Writing'!N5","v":"At"}]
[{"$f":"'Student Details'!A4","v":"Sample"},{"$f":"'Student Details'!B4","v":"Student 3"},null,{"$f":"'Summative Reading'!C6","v":"At"},{"$f":"'Summative Reading'!E6","v":"Above"},{"$f":"'Summative Reading'!J6","v":"At"},{"$f":"'Summative Writing'!N6","v":"At"},{"$f":"'Summative Writing'!F6","v":"At"},{"$f":"'Summative Writing'!N6","v":"At"}]
[{"$f":"'Student Details'!A5","v":"Sample"},{"$f":"'Student Details'!B5","v":"Student 4"},null,{"$f":"'Summative Reading'!C7","v":"Below"},{"$f":"'Summative Reading'!E7","v":"Below"},{"$f":"'Summative Reading'!J7","v":"Below"},{"$f":"'Summative Writing'!N7","v":"At"},{"$f":"'Summative Writing'!F7","v":"At"},{"$f":"'Summative Writing'!N7","v":"At"}]
[{"$f":"'Student Details'!A6","v":"Sample"},{"$f":"'Student Details'!B6","v":"Student 5"},null,{"$f":"'Summative Reading'!C8","v":"At"},{"$f":"'Summative Reading'!E8","v":"At"},{"$f":"'Summative Reading'!J8","v":"At"},{"$f":"'Summative Writing'!N8","v":"At"},{"$f":"'Summative Writing'!F8","v":"At"},{"$f":"'Summative Writing'!N8","v":"At"}]
[{"$f":"'Student Details'!A7","v":"Sample"},{"$f":"'Student Details'!B7","v":"Student 6"},null,{"$f":"'Summative Reading'!C9","v":"Above"},{"$f":"'Summative Reading'!E9","v":"At"},{"$f":"'Summative Reading'!J9","v":"At"},{"$f":"'Summative Writing'!N9","v":"At"},{"$f":"'Summative Writing'!F9","v":"At"},{"$f":"'Summative Writing'!N9","v":"At"}]
[{"$f":"'Student Details'!A8","v":"Sample"},{"$f":"'Student Details'!B8","v":"Student 7"},null,{"$f":"'Summative Reading'!C10","v":"At"},{"$f":"'Summative Reading'!E10","v":"Above"},{"$f":"'Summative Reading'!J10","v":"At"},{"$f":"'Summative Writing'!N10","v":"Above"},{"$f":"'Summative Writing'!F10","v":"At"},{"$f":"'Summative Writing'!N10","v":"Above"}]
[{"$f":"'Student Details'!A9","v":"Sample"},{"$f":"'Student Details'!B9","v":"Student 8"},null,{"$f":"'Summative Reading'!C11","v":"At"},{"$f":"'Summative Reading'!E11","v":"At"},{"$f":"'Summative Reading'!J11","v":"At"},{"$f":"'Summative Writing'!N11","v":"At"},{"$f":"'Summative Writing'!F11","v":"At"},{"$f":"'Summative Writing'!N11","v":"At"}]
[{"$f":"'Student Details'!A10","v":"Sample"},{"$f":"'Student Details'!B10","v":"Student 9"},null,{"$f":"'Summative Reading'!C12","v":"At"},{"$f":"'Summative Reading'!E12","v":"Above"},{"$f":"'Summative Reading'!J12","v":"At"},{"$f":"'Summative Writing'!N12","v":"At"},{"$f":"'Summative Writing'!F12","v":"At"},{"$f":"'Summative Writing'!N12","v":"At"}]
[{"$f":"'Student Details'!A11","v":"Sample"},{"$f":"'Student Details'!B11","v":"Student 10"},null,{"$f":"'Summative Reading'!C13","v":"Above"},{"$f":"'Summative Reading'!E13","v":"Above"},{"$f":"'Summative Reading'!J13","v":"At"},{"$f":"'Summative Writing'!N13","v":"Above"},{"$f":"'Summative Writing'!F13","v":"Above"},{"$f":"'Summative Writing'!N13","v":"Above"}]
[{"$f":"'Student Details'!A12","v":"Sample"},{"$f":"'Student Details'!B12","v":"Student 11"},null,{"$f":"'Summative Reading'!C14","v":"At"},{"$f":"'Summative Reading'!E14","v":"At"},{"$f":"'Summative Reading'!J14","v":"At"},{"$f":"'Summative Writing'!N14","v":"At"},{"$f":"'Summative Writing'!F14","v":"At"},{"$f":"'Summative Writing'!N14","v":"At"}]
[{"$f":"'Student Details'!A13","v":"Sample"},{"$f":"'Student Details'!B13","v":"Student 12"},null,{"$f":"'Summative Reading'!C15","v":"Below"},{"$f":"'Summative Reading'!E15","v":"Below"},{"$f":"'Summative Reading'!J15","v":"Below"},{"$f":"'Summative Writing'!N15","v":"Below"},{"$f":"'Summative Writing'!F15","v":"Below"},{"$f":"'Summative Writing'!N15","v":"Below"}]
[{"$f":"'Student Details'!A14","v":"Sample"},{"$f":"'Student Details'!B14","v":"Student 13"},null,{"$f":"'Summative Reading'!C16","v":"Above"},{"$f":"'Summative Reading'!E16","v":"Above"},{"$f":"'Summative Reading'!J16","v":"Above"},{"$f":"'Summative Writing'!N16","v":"Above"},{"$f":"'Summative Writing'!F16","v":"Above"},{"$f":"'Summative Writing'!N16","v":"Above"}]
[{"$f":"'Student Details'!A15","v":"Sample"},{"$f":"'Student Details'!B15","v":"Student 14"},null,{"$f":"'Summative Reading'!C17","v":"Above"},{"$f":"'Summative Reading'!E17","v":"Above"},{"$f":"'Summative Reading'!J17","v":"At"},{"$f":"'Summative Writing'!N17","v":"At"},{"$f":"'Summative Writing'!F17","v":"At"},{"$f":"'Summative Writing'!N17","v":"At"}]
[{"$f":"'Student Details'!A16","v":"Sample"},{"$f":"'Student Details'!B16","v":"Student 15"},null,{"$f":"'Summative Reading'!C18","v":"At"},{"$f":"'Summative Reading'!E18","v":"At"},{"$f":"'Summative Reading'!J18","v":"At"},{"$f":"'Summative Writing'!N18","v":"Above"},{"$f":"'Summative Writing'!F18","v":"Above"},{"$f":"'Summative Writing'!N18","v":"Above"}]
[{"$f":"'Student Details'!A17","v":"Sample"},{"$f":"'Student Details'!B17","v":"Student 16"},null,{"$f":"'Summative Reading'!C19","v":"At"},{"$f":"'Summative Reading'!E19","v":"At"},{"$f":"'Summative Reading'!J19","v":"At"},{"$f":"'Summative Writing'!N19","v":"Below"},{"$f":"'Summative Writing'!F19","v":"Below"},{"$f":"'Summative Writing'!N19","v":"Below"}]
[{"$f":"'Student Details'!A18","v":"Sample"},{"$f":"'Student Details'!B18","v":"Student 17"},null,{"$f":"'Summative Reading'!C20","v":"At"},{"$f":"'Summative Reading'!E20","v":"At"},{"$f":"'Summative Reading'!J20","v":"At"},{"$f":"'Summative Writing'!N20","v":"At"},{"$f":"'Summative Writing'!F20","v":"At"},{"$f":"'Summative Writing'!N20","v":"At"}]
[{"$f":"'Student Details'!A19","v":"Sample"},{"$f":"'Student Details'!B19","v":"Student 18"},null,{"$f":"'Summative Reading'!C21","v":"At"},{"$f":"'Summative Reading'!E21","v":"Above"},{"$f":"'Summative Reading'!J21","v":"At"},{"$f":"'Summative Writing'!N21","v":"At"},{"$f":"'Summative Writing'!F21","v":"At"},{"$f":"'Summative Writing'!N21","v":"At"}]
[{"$f":"'Student Details'!A20","v":"Sample"},{"$f":"'Student Details'!B20","v":"Student 19"},null,{"$f":"'Summative Reading'!C22","v":"At"},{"$f":"'Summative Reading'!E22","v":"Below"},{"$f":"'Summative Reading'!J22","v":"At"},{"$f":"'Summative Writing'!N22","v":"At"},{"$f":"'Summative Writing'!F22","v":"At"},{"$f":"'Summative Writing'!N22","v":"At"}]
[{"$f":"'Student Details'!A21","v":"Sample"},{"$f":"'Student Details'!B21","v":"Student 20"},null,{"$f":"'Summative Reading'!C23","v":"Above"},{"$f":"'Summative Reading'!E23","v":"At"},{"$f":"'Summative Reading'!J23","v":"Above"},{"$f":"'Summative Writing'!N23","v":"At"},{"$f":"'Summative Writing'!F23","v":"At"},{"$f":"'Summative Writing'!N23","v":"At"}]
[{"$f":"'Student Details'!A22","v":"Sample"},{"$f":"'Student Details'!B22","v":"Student 21"},null,{"$f":"'Summative Reading'!C24","v":"Above"},{"$f":"'Summative Reading'!E24","v":"Above"},{"$f":"'Summative Reading'!J24","v":"Above"},{"$f":"'Summative Writing'!N24","v":"Above"},{"$f":"'Summative Writing'!F24","v":"Above"},{"$f":"'Summative Writing'!N24","v":"Above"}]
[{"$f":"'Student Details'!A23","v":"Sample"},{"$f":"'Student Details'!B23","v":"Student 22"},null,{"$f":"'Summative Reading'!C25","v":"At"},{"$f":"'Summative Reading'!E25","v":"At"},{"$f":"'Summative Reading'!J25","v":"At"},{"$f":"'Summative Writing'!N25","v":"At"},{"$f":"'Summative Writing'!F25","v":"At"},{"$f":"'Summative Writing'!N25","v":"At"}]
[{"$f":"'Student Details'!A24","v":"Sample"},{"$f":"'Student Details'!B24","v":"Student 23"},null,{"$f":"'Summative Reading'!C26","v":"At"},{"$f":"'Summative Reading'!E26","v":"At"},{"$f":"'Summative Reading'!J26","v":"Below"},{"$f":"'Summative Writing'!N26","v":"Above"},{"$f":"'Summative Writing'!F26","v":"Above"},{"$f":"'Summative Writing'!N26","v":"Above"}]
[{"$f":"'Student Details'!A25","v":"Sample"},{"$f":"'Student Details'!B25","v":"Student 24"},null,{"$f":"'Summative Reading'!C27","v":"At"},{"$f":"'Summative Reading'!E27","v":"At"},{"$f":"'Summative Reading'!J27","v":"At"},{"$f":"'Summative Writing'!N27","v":"At"},{"$f":"'Summative Writing'!F27","v":"At"},{"$f":"'Summative Writing'!N27","v":"At"}]
[{"$f":"'Student Details'!A26","v":"Sample"},{"$f":"'Student Details'!B26","v":"Student 25"},null,{"$f":"'Summative Reading'!C28","v":"At"},{"$f":"'Summative Reading'!E28","v":"At"},{"$f":"'Summative Reading'!J28","v":"At"},{"$f":"'Summative Writing'!N28","v":"At"},{"$f":"'Summative Writing'!F28","v":"At"},{"$f":"'Summative Writing'!N28","v":"At"}]
[{"$f":"'Student Details'!A27","v":"Sample"},{"$f":"'Student Details'!B27","v":"Student 26"},null,{"$f":"'Summative Reading'!C29","v":"At"},{"$f":"'Summative Reading'!E29","v":"Below"},{"$f":"'Summative Reading'!J29","v":"At"},{"$f":"'Summative Writing'!N29","v":"Below"},{"$f":"'Summative Writing'!F29","v":"Below"},{"$f":"'Summative Writing'!N29","v":"Below"}]
[{"$f":"'Student Details'!A28","v":"Sample"},{"$f":"'Student Details'!B28","v":"Student 27"},null,{"$f":"'Summative Reading'!C30","v":"Above"},{"$f":"'Summative Reading'!E30","v":"Above"},{"$f":"'Summative Reading'!J30","v":"Above"},{"$f":"'Summative Writing'!N30","v":"Above"},{"$f":"'Summative Writing'!F30","v":"Above"},{"$f":"'Summative Writing'!N30","v":"Above"}]

{"sheet":"Summative Reading","index":2,"n_rows":30,"n_cols":11,"rows_kept":30,"cut":false,"hidden":false,"merged":[[0,4,0,8],[0,2,0,3],[0,9,0,10],[1,5,1,6],[1,7,1,8]]}
["First Name","Last Name","Fluency",null,"Comprehension",null,null,null,null,"Expression"]
[null,null,"Overall","Time","Overall","Literal",null,"Inferential",null,"Overall"]
[null,null,"Grade",null,"Grade","Once","Probe","Once","Probe","Grade","Once"]
[{"$f":"'Student Details'!A2","v":"Sample"},{"$f":"'Student Details'!B2","v":"Student 1"},"Above",null,"At",null,null,null,null,"Above"]
[{"$f":"'Student Details'!A3","v":"Sample"},{"$f":"'Student Details'!B3","v":"Student 2"},"At",null,"Below",null,null,null,null,"At"]
[{"$f":"'Student Details'!A4","v":"Sample"},{"$f":"'Student Details'!B4","v":"Student 3"},"At",null,"Above",null,null,null,null,"At"]
[{"$f":"'Student Details'!A5","v":"Sample"},{"$f":"'Student Details'!B5","v":"Student 4"},"Below",null,"Below",null,null,null,null,"Below"]
[{"$f":"'Student Details'!A6","v":"Sample"},{"$f":"'Student Details'!B6","v":"Student 5"},"At",null,"At",null,null,null,null,"At"]
[{"$f":"'Student Details'!A7","v":"Sample"},{"$f":"'Student Details'!B7","v":"Student 6"},"Above",null,"At",null,null,null,null,"At"]
[{"$f":"'Student Details'!A8","v":"Sample"},{"$f":"'Student Details'!B8","v":"Student 7"},"At",null,"Above",null,null,null,null,"At"]
[{"$f":"'Student Details'!A9","v":"Sample"},{"$f":"'Student Details'!B9","v":"Student 8"},"At",null,"At",null,null,null,null,"At"]
[{"$f":"'Student Details'!A10","v":"Sample"},{"$f":"'Student Details'!B10","v":"Student 9"},"At",null,"Above",null,null,null,null,"At"]
[{"$f":"'Student Details'!A11","v":"Sample"},{"$f":"'Student Details'!B11","v":"Student 10"},"Above",null,"Above",null,null,null,null,"At"]
[{"$f":"'Student Details'!A12","v":"Sample"},{"$f":"'Student Details'!B12","v":"Student 11"},"At",null,"At",null,null,null,null,"At"]
[{"$f":"'Student Details'!A13","v":"Sample"},{"$f":"'Student Details'!B13","v":"Student 12"},"Below",null,"Below",null,null,null,null,"Below"]
[{"$f":"'Student Details'!A14","v":"Sample"},{"$f":"'Student Details'!B14","v":"Student 13"},"Above",null,"Above",null,null,null,null,"Above"]
[{"$f":"'Student Details'!A15","v":"Sample"},{"$f":"'Student Details'!B15","v":"Student 14"},"Above",null,"Above",null,null,null,null,"At"]
[{"$f":"'Student Details'!A16","v":"Sample"},{"$f":"'Student Details'!B16","v":"Student 15"},"At",null,"At",null,null,null,null,"At"]
[{"$f":"'Student Details'!A17","v":"Sample"},{"$f":"'Student Details'!B17","v":"Student 16"},"At",null,"At",null,null,null,null,"At"]
[{"$f":"'Student Details'!A18","v":"Sample"},{"$f":"'Student Details'!B18","v":"Student 17"},"At",null,"At",null,null,null,null,"At"]
[{"$f":"'Student Details'!A19","v":"Sample"},{"$f":"'Student Details'!B19","v":"Student 18"},"At",null,"Above",null,null,null,null,"At"]
[{"$f":"'Student Details'!A20","v":"Sample"},{"$f":"'Student Details'!B20","v":"Student 19"},"At",null,"Below",null,null,null,null,"At"]
[{"$f":"'Student Details'!A21","v":"Sample"},{"$f":"'Student Details'!B21","v":"Student 20"},"Above",null,"At",null,null,null,null,"Above"]
[{"$f":"'Student Details'!A22","v":"Sample"},{"$f":"'Student Details'!B22","v":"Student 21"},"Above",null,"Above",null,null,null,null,"Above"]
[{"$f":"'Student Details'!A23","v":"Sample"},{"$f":"'Student Details'!B23","v":"Student 22"},"At",null,"At",null,null,null,null,"At"]
[{"$f":"'Student Details'!A24","v":"Sample"},{"$f":"'Student Details'!B24","v":"Student 23"},"At",null,"At",null,null,null,null,"Below"]
[{"$f":"'Student Details'!A25","v":"Sample"},{"$f":"'Student Details'!B25","v":"Student 24"},"At",null,"At",null,null,null,null,"At"]
[{"$f":"'Student Details'!A26","v":"Sample"},{"$f":"'Student Details'!B26","v":"Student 25"},"At",null,"At",null,null,null,null,"At"]
[{"$f":"'Student Details'!A27","v":"Sample"},{"$f":"'Student Details'!B27","v":"Student 26"},"At",null,"Below",null,null,null,null,"At"]
[{"$f":"'Student Details'!A28","v":"Sample"},{"$f":"'Student Details'!B28","v":"Student 27"},"Above",null,"Above",null,null,null,null,"Above"]

{"sheet":"Summative Writing","index":3,"n_rows":30,"n_cols":17,"rows_kept":30,"cut":false,"hidden":false,"merged":[]}
["First Name","Last Name","Genre",null,null,"Grammar",null,null,null,null,null,null,null,"Spelling"]
[null,null,"Overall","Narrative","Persuasive","Overall ","PEEL","Sentence","Punctuate","G & P","Persuasive Sample",null,null,"Overall","P. Sample",null,"Test"]
[null,null,"Grade",null,null,"Grade","Paragraph","Exercise","This","Test","Paragraphs","Sentences","Punctuation","Grade","Vocab Used","Errors Made"]
[{"$f":"'Student Details'!A2","v":"Sample"},{"$f":"'Student Details'!B2","v":"Student 1"},"Above",null,null,"Above",null,null,null,null,null,null,null,"Above"]
[{"$f":"'Student Details'!A3","v":"Sample"},{"$f":"'Student Details'!B3","v":"Student 2"},"At",null,null,"At",null,null,null,null,null,null,null,"At"]
[{"$f":"'Student Details'!A4","v":"Sample"},{"$f":"'Student Details'!B4","v":"Student 3"},"At",null,null,"At",null,null,null,null,null,null,null,"At"]
[{"$f":"'Student Details'!A5","v":"Sample"},{"$f":"'Student Details'!B5","v":"Student 4"},"At",null,null,"At",null,null,null,null,null,null,null,"At"]
[{"$f":"'Student Details'!A6","v":"Sample"},{"$f":"'Student Details'!B6","v":"Student 5"},"At",null,null,"At",null,null,null,null,null,null,null,"At"]
[{"$f":"'Student Details'!A7","v":"Sample"},{"$f":"'Student Details'!B7","v":"Student 6"},"At",null,null,"At",null,null,null,null,null,null,null,"At"]
[{"$f":"'Student Details'!A8","v":"Sample"},{"$f":"'Student Details'!B8","v":"Student 7"},"Above",null,null,"At",null,null,null,null,null,null,null,"Above"]
[{"$f":"'Student Details'!A9","v":"Sample"},{"$f":"'Student Details'!B9","v":"Student 8"},"At",null,null,"At",null,null,null,null,null,null,null,"At"]
[{"$f":"'Student Details'!A10","v":"Sample"},{"$f":"'Student Details'!B10","v":"Student 9"},"At",null,null,"At",null,null,null,null,null,null,null,"At"]
[{"$f":"'Student Details'!A11","v":"Sample"},{"$f":"'Student Details'!B11","v":"Student 10"},"Above",null,null,"Above",null,null,null,null,null,null,null,"Above"]
[{"$f":"'Student Details'!A12","v":"Sample"},{"$f":"'Student Details'!B12","v":"Student 11"},"At",null,null,"At",null,null,null,null,null,null,null,"At"]
[{"$f":"'Student Details'!A13","v":"Sample"},{"$f":"'Student Details'!B13","v":"Student 12"},"Below",null,null,"Below",null,null,null,null,null,null,null,"Below"]
[{"$f":"'Student Details'!A14","v":"Sample"},{"$f":"'Student Details'!B14","v":"Student 13"},"At",null,null,"Above",null,null,null,null,null,null,null,"Above"]
[{"$f":"'Student Details'!A15","v":"Sample"},{"$f":"'Student Details'!B15","v":"Student 14"},"At",null,null,"At",null,null,null,null,null,null,null,"At"]
[{"$f":"'Student Details'!A16","v":"Sample"},{"$f":"'Student Details'!B16","v":"Student 15"},"Above",null,null,"Above",null,null,null,null,null,null,null,"Above"]
[{"$f":"'Student Details'!A17","v":"Sample"},{"$f":"'Student Details'!B17","v":"Student 16"},"Below",null,null,"Below",null,null,null,null,null,null,null,"Below"]
[{"$f":"'Student Details'!A18","v":"Sample"},{"$f":"'Student Details'!B18","v":"Student 17"},"At",null,null,"At",null,null,null,null,null,null,null,"At"]
[{"$f":"'Student Details'!A19","v":"Sample"},{"$f":"'Student Details'!B19","v":"Student 18"},"At",null,null,"At",null,null,null,null,null,null,null,"At"]
[{"$f":"'Student Details'!A20","v":"Sample"},{"$f":"'Student Details'!B20","v":"Student 19"},"At",null,null,"At",null,null,null,null,null,null,null,"At"]
[{"$f":"'Student Details'!A21","v":"Sample"},{"$f":"'Student Details'!B21","v":"Student 20"},"At",null,null,"At",null,null,null,null,null,null,null,"At"]
[{"$f":"'Student Details'!A22","v":"Sample"},{"$f":"'Student Details'!B22","v":"Student 21"},"Above",null,null,"Above",null,null,null,null,null,null,null,"Above"]
[{"$f":"'Student Details'!A23","v":"Sample"},{"$f":"'Student Details'!B23","v":"Student 22"},"At",null,null,"At",null,null,null,null,null,null,null,"At"]
[{"$f":"'Student Details'!A24","v":"Sample"},{"$f":"'Student Details'!B24","v":"Student 23"},"At",null,null,"Above",null,null,null,null,null,null,null,"Above"]
[{"$f":"'Student Details'!A25","v":"Sample"},{"$f":"'Student Details'!B25","v":"Student 24"},"At",null,null,"At",null,null,null,null,null,null,null,"At"]
[{"$f":"'Student Details'!A26","v":"Sample"},{"$f":"'Student Details'!B26","v":"Student 25"},"At",null,null,"At",null,null,null,null,null,null,null,"At"]
[{"$f":"'Student Details'!A27","v":"Sample"},{"$f":"'Student Details'!B27","v":"Student 26"},"At",null,null,"Below",null,null,null,null,null,null,null,"Below"]
[{"$f":"'Student Details'!A28","v":"Sample"},{"$f":"'Student Details'!B28","v":"Student 27"},"Above",null,null,"Above",null,null,null,null,null,null,null,"Above"]

{"sheet":"Summative Oral","index":4,"n_rows":30,"n_cols":6,"rows_kept":30,"cut":false,"hidden":false,"merged":[]}
["First Name","Last Name","Speaking",null,"Listening"]
[null,null,"Overall","Oral","Overall","Structured"]
[null,null,"Grade","Presentation","Grade","Observation"]
[{"$f":"'Student Details'!A2","v":"Sample"},{"$f":"'Student Details'!B2","v":"Student 1"}]
[{"$f":"'Student Details'!A3","v":"Sample"},{"$f":"'Student Details'!B3","v":"Student 2"}]
[{"$f":"'Student Details'!A4","v":"Sample"},{"$f":"'Student Details'!B4","v":"Student 3"}]
[{"$f":"'Student Details'!A5","v":"Sample"},{"$f":"'Student Details'!B5","v":"Student 4"}]
[{"$f":"'Student Details'!A6","v":"Sample"},{"$f":"'Student Details'!B6","v":"Student 5"}]
[{"$f":"'Student Details'!A7","v":"Sample"},{"$f":"'Student Details'!B7","v":"Student 6"}]
[{"$f":"'Student Details'!A8","v":"Sample"},{"$f":"'Student Details'!B8","v":"Student 7"}]
[{"$f":"'Student Details'!A9","v":"Sample"},{"$f":"'Student Details'!B9","v":"Student 8"}]
[{"$f":"'Student Details'!A10","v":"Sample"},{"$f":"'Student Details'!B10","v":"Student 9"}]
[{"$f":"'Student Details'!A11","v":"Sample"},{"$f":"'Student Details'!B11","v":"Student 10"}]
[{"$f":"'Student Details'!A12","v":"Sample"},{"$f":"'Student Details'!B12","v":"Student 11"}]
[{"$f":"'Student Details'!A13","v":"Sample"},{"$f":"'Student Details'!B13","v":"Student 12"}]
[{"$f":"'Student Details'!A14","v":"Sample"},{"$f":"'Student Details'!B14","v":"Student 13"}]
[{"$f":"'Student Details'!A15","v":"Sample"},{"$f":"'Student Details'!B15","v":"Student 14"}]
[{"$f":"'Student Details'!A16","v":"Sample"},{"$f":"'Student Details'!B16","v":"Student 15"}]
[{"$f":"'Student Details'!A17","v":"Sample"},{"$f":"'Student Details'!B17","v":"Student 16"}]
[{"$f":"'Student Details'!A18","v":"Sample"},{"$f":"'Student Details'!B18","v":"Student 17"}]
[{"$f":"'Student Details'!A19","v":"Sample"},{"$f":"'Student Details'!B19","v":"Student 18"}]
[{"$f":"'Student Details'!A20","v":"Sample"},{"$f":"'Student Details'!B20","v":"Student 19"}]
[{"$f":"'Student Details'!A21","v":"Sample"},{"$f":"'Student Details'!B21","v":"Student 20"}]
[{"$f":"'Student Details'!A22","v":"Sample"},{"$f":"'Student Details'!B22","v":"Student 21"}]
[{"$f":"'Student Details'!A23","v":"Sample"},{"$f":"'Student Details'!B23","v":"Student 22"}]
[{"$f":"'Student Details'!A24","v":"Sample"},{"$f":"'Student Details'!B24","v":"Student 23"}]
[{"$f":"'Student Details'!A25","v":"Sample"},{"$f":"'Student Details'!B25","v":"Student 24"}]
[{"$f":"'Student Details'!A26","v":"Sample"},{"$f":"'Student Details'!B26","v":"Student 25"}]
[{"$f":"'Student Details'!A27","v":"Sample"},{"$f":"'Student Details'!B27","v":"Student 26"}]
[{"$f":"'Student Details'!A28","v":"Sample"},{"$f":"'Student Details'!B28","v":"Student 27"}]